Cogmind - Beta 12 @@@ ROGUE MODE // 2024.02.11 @ 01:43:47 Player: Six of Ten Result: Destroyed by D-53 Grenadier with Mini Grenade Launcher Performance ------------- Evolutions (0) 0 Regions Visited (2) 400 Robots Destroyed (3) 15 Value Destroyed (36) 36 Prototype IDs (0) 0 Alien Tech Used (0) 0 Bonus (0) 0 TOTAL SCORE: 451 Bonus ------- None Cogmind --------- Core Integrity 0/250 Matter 295/300 Energy 73/100 System Corruption 0% Temperature Cool (0) Movement Core (50) Location -10/Mines Parts ------- > --- POWER (1) -------- (None) > --- PROPULSION (2) --- (None) > --- UTILITY (2) ------ (None) > --- WEAPON (2) ------- (None) > --- INVENTORY (5) ---- Ion Engine Light Treads Light Treads High-capacity Matter Pod (59) Signal Interpreter Peak State ------------ > --- POWER ------------ Light Ion Engine > --- PROPULSION ------- Aluminum Leg Aluminum Leg > --- UTILITY ---------- Small Storage Unit ECM Suite > --- WEAPON ----------- EM Pulse Gun Light Assault Rifle > --- INVENTORY -------- Ion Engine Light Treads Light Treads Wheel Compact Wheel Medium Laser [Rating: 7] Favorites ----------- Power Light Ion Engine Engine Light Ion Engine Propulsion Aluminum Leg Leg Aluminum Leg Utility Small Storage Unit Device ECM Suite Storage Small Storage Unit Weapon EM Pulse Gun Energy Gun EM Pulse Gun Ballistic Gun Light Assault Rifle Build | -11 -10 -10 ------- Run | Jun Mat Min Slots Evolved . | . . . Power . | . . . Propulsion . | . . . Utility . | . . . Weapon . | . . . Parts Attached 9 | 6 1 2 Power 1 | 1 . . Engine 1 | 1 . . Core . | . . . Reactor . | . . . Propulsion 3 | 2 . 1 Treads . | . . . Leg 2 | 2 . . Wheel 1 | . . 1 Hover . | . . . Flight . | . . . Utility 2 | 1 1 . Device 1 | . 1 . Storage 1 | 1 . . Processor . | . . . Hackware . | . . . Protection . | . . . Artifact . | . . . Weapon 3 | 2 . 1 Energy Gun 2 | 1 . 1 Energy Cannon . | . . . Ballistic Gun 1 | 1 . . Ballistic Cannon . | . . . Launcher . | . . . Special Weapon . | . . . Impact Weapon . | . . . Slashing Weapon . | . . . Piercing Weapon . | . . . Special Melee Weapon . | . . . Unidentified Prototypes . | . . . Parts Lost 7 | . . 7 Power 1 | . . 1 Propulsion 3 | . . 3 Utility 1 | . . 1 Weapon 2 | . . 2 Highest Loss Streak 7 | . . 7 To Critical Strikes . | . . . Average Slot Usage (%) 97 | . 98 97 Engine 13 | . 14 13 Leg 27 | . 28 27 Device 13 | . 12 14 Storage 14 | . 14 14 Energy Gun 19 | . 14 21 Ballistic Gun 7 | . 14 4 Naked Turns . | . . . Heaviest Build 14 | 11 13 14 Greatest Support 20 | 20 20 20 Greatest Overweight (x) 2 | . . 2 Average Overweight (x) . | . . . Largest Inventory Capacity 8 | 8 8 8 Average Capacity 7 | 6 8 8 Most Carried 8 | 6 8 8 Average Carried 5 | 2 6 6 Final Capacity 8 | 8 8 5 Final Carried 8 | 6 8 5 Class Distribution -------------------- 100% | Mutant Dominant Class ---------------- Mutant | -10/Materials Mutant | -10/Mines Resources | -11 -10 -10 ----------- Run | Jun Mat Min Matter Collected 313 | 231 28 54 Remotely . | . . . Salvage Created 67 | . 28 39 Parts 7 | . 3 4 Haulers Intercepted . | . . . Recyclers Shooed . | . . . Parts Field Recycled . | . . . Retrieved Matter . | . . . Parts Self-Destructed . | . . . Prevented . | . . . Kills | -11 -10 -10 ------- Run | Jun Mat Min Combat Hostiles Destroyed 2 | . . 2 Guns 2 | . . 2 Classes Destroyed 2 | . 1 1 Watcher 1 | . 1 . Swarmer 2 | . . 2 Best Kill Streak 2 | . 1 2 Combat Bots Only 2 | . . 2 Max Kills in Single Turn 1 | . 1 1 Gunslinging . | . . . Exploded . | . . . Melee . | . . . Uniques/NPCs Destroyed . | . . . Combat | -11 -10 -10 -------- Run | Jun Mat Min Damage Taken 705 | . 14 691 Core 258 | . . 258 Absorbed by Shields . | . . . Core Remaining (%) 100 | 100 . . Volleys Fired 6 | . 1 5 Largest 2 | . 2 2 Hottest 90 | . 60 90 Shots Fired 12 | . 2 10 Gun 12 | . 2 10 Cannon . | . . . Launcher . | . . . Special . | . . . Kinetic 4 | . 1 3 Thermal 2 | . . 2 Explosive . | . . . Electromagnetic 6 | . 1 5 Robot Hit Streak 3 | . 1 3 Robot Miss Streak 1 | . . 1 Penetration Max . | . . . Secondary Targets . | . . . Shots Hit Robots 7 | . 1 6 Core Hits 4 | . 1 3 Critical Kills . | . . . Critical Parts Destroyed . | . . . Critical Strikes . | . . . Melee Attacks . | . . . Impact . | . . . Slashing . | . . . Piercing . | . . . Sneak Attacks . | . . . Combat Hostiles . | . . . Follow-up Attacks . | . . . Damage Inflicted 99 | . 24 75 Guns 99 | . 24 75 Cannons . | . . . Explosions . | . . . Melee . | . . . Ramming . | . . . Kinetic 26 | . . 26 Thermal 26 | . . 26 Explosive . | . . . Electromagnetic 47 | . 24 23 Impact . | . . . Slashing . | . . . Piercing . | . . . Highest Corruption . | . . . Average Corruption . | . . . Corruption Purged . | . . . Corruption Blocked . | . . . Overload Shots . | . . . Overflow Damage . | . . . Projectiles . | . . . Explosions . | . . . Melee . | . . . Knockbacks . | . . . Impact . | . . . Kinetic . | . . . Secondary . | . . . Self-Inflicted Damage . | . . . Shots . | . . . Rammed . | . . . Targets Rammed . | . . . Kicked . | . . . Crushed . | . . . Highest Temperature 60 | . 20 60 Average Temperature 23 | . 15 24 Received Heat Transfer . | . . . Siege Activations . | . . . Robots Corrupted . | . . . Combat Hostiles . | . . . Parts Fried . | . . . Impact Corruptions . | . . . Robots Melted . | . . . Combat Hostiles . | . . . Parts Melted . | . . . Heat Transferred 74 | . . 74 Parts Sabotaged . | . . . Parts Stolen . | . . . Parts Stripped . | . . . Power Chain Reactions . | . . . Missiles Intercepted . | . . . Alert | -11 -10 -10 ------- Run | Jun Mat Min Peak Influence 48 | . 22 48 Initial 8 | . . 8 Average 21 | . 1 35 Maximum Alert Level . | . . . Low Security (%) 100 | 100 100 100 Level 1 . | . . . Level 2 . | . . . Level 3 . | . . . Level 4 . | . . . Level 5 . | . . . High Security . | . . . Max Security . | . . . Squads Dispatched . | . . . Investigation . | . . . Extermination . | . . . Reinforcement . | . . . Assault . | . . . Garrison . | . . . Intercept . | . . . Searches Triggered . | . . . Construction Impeded . | . . . Haulers Reinforced . | . . . Active Scanning Responses . | . . . Cargo Convoy Interrupts . | . . . Stealth | -11 -10 -10 --------- Run | Jun Mat Min Distress Signals . | . . . Communications Jammed . | . . . Distress Signals . | . . . Times Spotted 12 | . 6 6 Peak Tracking Total 5 | . 5 3 Tactical Retreats 1 | . . 1 Traps | -11 -10 -10 ------- Run | Jun Mat Min Traps Triggered . | . . . Indirectly . | . . . Trap Hack Attempts . | . . . Triggered . | . . . Disarmed . | . . . Reprogrammed . | . . . Reused . | . . . Traps Extracted . | . . . Installed . | . . . Triggered . | . . . Machines | -11 -10 -10 ---------- Run | Jun Mat Min Machines Disabled . | . . . Max in Single Turn . | . . . Machines Repaired . | . . . Machines Sabotaged . | . . . Overloaded Fab Kills . | . . . Hacking | -11 -10 -10 --------- Run | Jun Mat Min Machines Accessed . | . . . Terminals . | . . . Fabricators . | . . . Repair Stations . | . . . Recycling Units . | . . . Scanalyzers . | . . . Garrison Access . | . . . Total Hacks . | . . . Successful . | . . . Failed . | . . . Catastrophic . | . . . Database Lockouts . | . . . Manual . | . . . Terminals . | . . . Fabricators . | . . . Repair Stations . | . . . Recycling Units . | . . . Scanalyzers . | . . . Garrison Access . | . . . Terminal Hacks . | . . . Fabricator Hacks . | . . . Repair Station Hacks . | . . . Recycling Unit Hacks . | . . . Scanalyzer . | . . . Garrison Access Hacks . | . . . Unauthorized Hacks . | . . . Terminals . | . . . Fabricators . | . . . Repair Stations . | . . . Recycling Units . | . . . Scanalyzers . | . . . Garrison Access . | . . . Data Cores Recovered . | . . . Used . | . . . Hacking Detections . | . . . Full Trace Events . | . . . Feedback Events . | . . . Feedback Blocked . | . . . Robot Schematics Acquired . | . . . Robots Built . | . . . Authchips . | . . . Time . | . . . Total Robot Build Rating . | . . . Part Schematics Acquired . | . . . Parts Built . | . . . Authchips . | . . . Time . | . . . Total Part Build Rating . | . . . Parts Repaired . | . . . Time . | . . . Parts Recycled . | . . . Recycled Matter . | . . . Retrieved Matter . | . . . Retrieved Components . | . . . Parts Scanalyzed . | . . . Part Schematics Acquired . | . . . Parts Damaged . | . . . Bothacking | -11 -10 -10 ------------ Run | Jun Mat Min Used RIF Installer . | . . . Robots Hacked . | . . . Non-combat . | . . . Combat . | . . . Robot Hacks Applied . | . . . Relay Couplers Released . | . . . Fabnet Peak Effective % . | . . . Robots Rewired . | . . . Allies Hacked . | . . . Hacks Repelled . | . . . Allies | -11 -10 -10 -------- Run | Jun Mat Min Total Allies . | . . . Largest Group . | . . . Highest-Rated Group . | . . . Highest-Rated Ally . | . . . Total Orders . | . . . Ally Attacks . | . . . Total Damage . | . . . Kills . | . . . Allies Corrupted . | . . . Allies Melted . | . . . Intel | -11 -10 -10 ------- Run | Jun Mat Min Robot Analysis Total . | . . . Derelict Logs Recovered . | . . . Drone Launches . | . . . Drone Recoveries . | . . . Exploration | -11 -10 -10 ------------- Run | Jun Mat Min Turns Passed 443 | 72 104 267 Spaces Moved 306 | 50 81 175 Core 5 | 3 . 2 Treads . | . . . Legs 301 | 47 81 173 Wheels . | . . . Hover . | . . . Flight . | . . . Fastest Speed 50 | 50 120 100 Average Speed 119 | 115 120 120 Slowest Speed 150 | 120 120 150 Overloaded Moves . | . . . Propulsion Burnouts . | . . . Robots Hopped . | . . . Cave-ins Triggered . | . . . Exploration Rate (%) 23 | 4 21 46 Regions Visited 2 Branch Regions 1 Pre-discovered Areas . | . . . Known Exits Taken . | . . . Unknown Exits Taken 2 | 1 1 . Scrap Searched 1 | . . 1 Spaces Dug . | . . . Terrain Destroyed . | . . . Melee . | . . . Projectile . | . . . AOE . | . . . Terrain Rammed . | . . . Walls Destroyed . | . . . Machines Disabled . | . . . Actions | -11 -10 -10 --------- Run | Jun Mat Min Total 370 | 61 85 224 Wait 37 | . 1 36 Move 304 | 49 80 175 Hop . | . . . Pick Up 10 | 6 2 2 Fast Attach 7 | 6 1 . Attach 1 | . . 1 Detach . | . . . Swap 1 | . . 1 Drop 4 | . . 4 Fire 6 | . 1 5 Melee . | . . . Ram . | . . . Kick . | . . . Crush . | . . . Escape Stasis . | . . . Rewire . | . . . Trap . | . . . Miscellaneous . | . . . Route ------- -11/Junkyard -10/Materials -10/Mines (discovered 1 exit: [*Mat]) History --------- Turn | Location | Event 8 | -11/Junkyard | Discovered new exit (range 16) 73 | -11/Junkyard | Entered Materials 166 | -10/Materials | Discovered new exit (range 9) 177 | -10/Materials | Entered Mines 301 | -10/Mines | Build established: Mutant 301 | -10/Mines | Discovered new exit (range 5) 375 | -10/Mines | Assembled infested the area 440 | -10/Mines | Core integrity fell below 50% 444 | -10/Mines | Core integrity fell below 20% 444 | -10/Mines | Destroyed by D-53 Grenadier with Mini Grenade Launcher Last Messages --------------- 00421_ T-07 Excavator is excavating. 00424_ C-30 ARC bursts open, deploying its payload. 00424_ D-53 Grenadier unfolds itself. 00425_ T-07 Excavator is excavating. 00428_ EM Pulse Gun destroyed. 00430_ The unstable cave ceiling collapses. 00430_ T-07 Excavator is excavating. 00433_ The unstable cave ceiling collapses. 00433_ Aluminum Leg destroyed. 00433_ Med. Laser destroyed. 00434_ The unstable cave ceiling collapses. 00434_ T-07 Excavator is excavating. 00434_ Lgt. Ion Engine destroyed. 00435_ The unstable cave ceiling collapses. 00438_ T-07 Excavator is excavating. 00440_ Aluminum Leg destroyed. 00441_ ECM Suite destroyed. 00443_ The unstable cave ceiling collapses. 00443_ Com. Wheel destroyed. 00444_ Dropped Sml. Storage Unit. Map ----- +----------------------------------------------------+ | | | | | ?????????????????????????????????????????????????? | | ?????????????????????????????????????????????????? | | ?????????????????????????????????????????????????? | | ?????????????????????????????????????????????????? | | ?????????????????????????? ??????????????????????? | | ????????????????????????? #????????????????????? | | ????????????????????????? #????????????????????? | | ????????????????????????? ?????????????????????? | | ????????????????????????# #?????????????????????? | | ???????????????????????# #?????????????????????? | | ????????????????????### ###???????????????????? | | ???????????????????## ???????????????????? | | ???????????????????# ???????????????????? | | ???????????????????# #?# #???????????????????? | | ??????????????????## #??# #???????????????????? | | ??????????????????# ##?# #???????????????????? | | ?????????????????## #?# #???????????????????? | | ?????????????????# #?# #???????????????????? | | ?????????????????# #### #???????????????????? | | ???????????????### ## # #%#???????????????????? | | ???????????????# # ##??????????????????? | | ???????????????# # #??????????????????? | | ?????????????### #???????????????????? | | ????????????### @/ ####??#?????????????? | | ????????????## # ## #?????????????? | | ????????????# ## #???????###???? | | ????????????# ## ####??????# #???? | | ?????????# #### #???????## #???? | | ?????????# ###??# #????#### ##??? | | ?????????# ## dd ###????# #???## #??? | | ?????????????## ##??????# #??## #??? | | ??????????????##### #??????# #?## ##??? | | ??????????????????#u #?????# #?# #???? | | ?????????????????? #????# #?# #???? | | ????????????????? #???# ### ##???? | | ???????????????? ### " #???# ##????? | | ???????????????? #???#%" #???###### #?????? | | ??????????????? #?????" #????????# ##????? | | ?????????????? % ?????? #????????## #????? | | ??????????????? ???????# #?????????## #????? | | ???????????????????????? ????????????## #????? | | ??????????????????????????????????????## #????? | | ???????????????????????????????????###?## ##????? | | ??????????????????????????????????## ### #?????? | | ?????????????????????????###?????## ## ####### | | ????????????????????????? ### ## # | | ????????????????????????? ## ##### # | | ????????????????????????????# #???# # | +----------------------------------------------------+ Best States ------------- Heat Dissipation 25 Energy Generation 10 Energy Capacity 125 Matter Stores 300 Matter Capacity 300 Sight Range 16 Terrain Scan Density 10 ECM Strength 1 Evasion (%) 55 Item Schematics ----------------- None Robot Schematics ------------------ None Fabricated ------------ Nothing Alien Tech Used ----------------- None Achievements -------------- None Challenges ------------ None Game ------ Seed SpikedReactionCorpse Manual? 0 Play Time 00:06:42 Cumulative 22.3 hours Start 2024.02.11 @ 01:39:10 End 2024.02.11 @ 01:43:47 Sessions 1 Manual Loads 0 Difficulty Rogue Special Mode None Game No. 31 Rogue 31 Adventurer 0 Explorer 0 Win Type - Total 0 Types 0/0/0/0/0/0/0/0/0 Lore% 16 Gallery% 27 Achievement% 24 Wizard Run 0 Options --------- ASCII 1 Keyboard 0 Movement Numpad Keybinds 0 Fullscreen 2 Font 18/SmallcapsGlow Map View 76x50 Tactical HUD 1 Map Filters NONE Filters NONE Steam 1 RUN: f5c6b1b8-7146-4ab9-9f3f-bdece9ecf37d